[Event "December 19 Early 2023"]
[Site "https://www.chess.com"]
[Date "2023.12.19"]
[Round "1"]
[White "Carlsen, Magnus"]
[Black "Davidson, Kevin"]
[Result "1-0"]
[Board "1"]
[TimeControl "180+1"]
[WhiteFideId "1503014"]
[BlackFideId "2056810"]
[WhiteElo "2887"]
[BlackElo "2151"]
[WhiteTeam "NOR"]
[BlackTeam "USA"]
[WhiteClock "0:02:03"]
[BlackClock "0:00:10"]

1. g3 {[%clk 0:02:58]}  Nf6 {[%clk 0:02:48]} 2. c4 {[%clk 0:02:57]}  g6 {[%clk 0:02:48]} 3. Nc3 {[%clk 0:02:56]}  Bg7 {[%clk 0:02:48]} 4. Bh3 {[%clk 0:02:56]}  O-O {[%clk 0:02:28]} 5. Nf3 {[%clk 0:02:54]}  c5 {[%clk 0:02:26]} 6. O-O {[%clk 0:02:53]}  Nc6 {[%clk 0:02:26]} 7. d3 {[%clk 0:02:45]}  d6 {[%clk 0:02:15]} 8. Bxc8 {[%clk 0:02:42]}  Qxc8 {[%clk 0:02:15]} 9. Bg5 {[%clk 0:02:41]}  a6 {[%clk 0:02:13]} 10. Rb1 {[%clk 0:02:41]}  Rb8 {[%clk 0:02:13]} 11. Nd5 {[%clk 0:02:39]}  b5 {[%clk 0:02:02]} 12. Bxf6 {[%clk 0:02:39]}  exf6 {[%clk 0:01:59]} 13. b4 {[%clk 0:02:31]}  f5 {[%clk 0:01:44]} 14. bxc5 {[%clk 0:02:28]}  dxc5 {[%clk 0:01:44]} 15. cxb5 {[%clk 0:02:28]}  axb5 {[%clk 0:01:44]} 16. Qc2 {[%clk 0:02:28]}  Qe6 {[%clk 0:01:18]} 17. Qxc5 {[%clk 0:02:27]}  Rfc8 {[%clk 0:01:15]} 18. Rxb5 {[%clk 0:02:23]}  Rxb5 {[%clk 0:01:06]} 19. Qxb5 {[%clk 0:02:24]}  Qxe2 {[%clk 0:00:56]} 20. Kg2 {[%clk 0:02:24]}  Nd4 {[%clk 0:00:50]} 21. Nxd4 {[%clk 0:02:19]}  Bxd4 {[%clk 0:00:50]} 22. Qd7 {[%clk 0:02:18]}  Rc2 {[%clk 0:00:35]} 23. Ne7+ {[%clk 0:02:16]}  Kf8 {[%clk 0:00:34]} 24. Qd8+ {[%clk 0:02:16]}  Kg7 {[%clk 0:00:33]} 25. Qxd4+ {[%clk 0:02:17]}  f6 {[%clk 0:00:25]} 26. Nd5 {[%clk 0:02:17]}  Qe6 {[%clk 0:00:23]} 27. Re1 {[%clk 0:02:00]}  Qxe1 {[%clk 0:00:19]} 28. Qxf6+ {[%clk 0:02:01]}  Kh6 {[%clk 0:00:19]} 29. Qh4+ {[%clk 0:02:01]}  Kg7 {[%clk 0:00:19]} 30. Qf6+ {[%clk 0:02:02]}  Kh6 {[%clk 0:00:19]} 31. Qf8+ {[%clk 0:02:03]}  Kg5 {[%clk 0:00:14]} 32. h4+ {[%clk 0:02:02]}  Kg4 {[%clk 0:00:10]} 33. Nf6# {[%clk 0:02:03]} 1-0

[Event "December 19 Early 2023"]
[Site "https://www.chess.com"]
[Date "2023.12.19"]
[Round "1"]
[White "Tikhonov, Viacheslav"]
[Black "Nakamura, Hikaru"]
[Result "0-1"]
[Board "2"]
[TimeControl "180+1"]
[WhiteFideId "44196407"]
[BlackFideId "2016192"]
[WhiteElo "2209"]
[BlackElo "2874"]
[WhiteTeam "RUS"]
[BlackTeam "USA"]
[WhiteClock "0:00:02"]
[BlackClock "0:02:08"]

1. e4 {[%clk 0:03:00]}  c6 {[%clk 0:02:59]} 2. d4 {[%clk 0:03:00]}  d5 {[%clk 0:02:59]} 3. Nc3 {[%clk 0:03:00]}  dxe4 {[%clk 0:02:59]} 4. Nxe4 {[%clk 0:03:01]}  Nf6 {[%clk 0:02:59]} 5. Nxf6+ {[%clk 0:03:01]}  gxf6 {[%clk 0:03:00]} 6. g3 {[%clk 0:03:00]}  Bf5 {[%clk 0:02:55]} 7. Bg2 {[%clk 0:02:54]}  e6 {[%clk 0:02:56]} 8. Nf3 {[%clk 0:02:51]}  Qa5+ {[%clk 0:02:53]} 9. c3 {[%clk 0:02:49]}  Qa6 {[%clk 0:02:53]} 10. Nh4 {[%clk 0:02:42]}  Bd3 {[%clk 0:02:49]} 11. b3 {[%clk 0:02:31]}  Nd7 {[%clk 0:02:45]} 12. c4 {[%clk 0:02:28]}  Bb4+ {[%clk 0:02:36]} 13. Bd2 {[%clk 0:02:28]}  Qa5 {[%clk 0:02:36]} 14. Bxb4 {[%clk 0:02:10]}  Qxb4+ {[%clk 0:02:37]} 15. Qd2 {[%clk 0:02:11]}  Qxd2+ {[%clk 0:02:37]} 16. Kxd2 {[%clk 0:02:12]}  Bg6 {[%clk 0:02:38]} 17. f4 {[%clk 0:02:03]}  O-O-O {[%clk 0:02:34]} 18. Kc3 {[%clk 0:02:00]}  f5 {[%clk 0:02:30]} 19. b4 {[%clk 0:01:53]}  Nf6 {[%clk 0:02:28]} 20. Rhe1 {[%clk 0:01:44]}  Bh5 {[%clk 0:02:27]} 21. Re5 {[%clk 0:00:58]}  Rd6 {[%clk 0:02:26]} 22. d5 {[%clk 0:00:48]}  cxd5 {[%clk 0:02:23]} 23. cxd5 {[%clk 0:00:48]}  Rhd8 {[%clk 0:02:24]} 24. Rae1 {[%clk 0:00:34]}  Nxd5+ {[%clk 0:02:23]} 25. Bxd5 {[%clk 0:00:34]}  Rxd5 {[%clk 0:02:23]} 26. Rxd5 {[%clk 0:00:33]}  Rxd5 {[%clk 0:02:23]} 27. Ng2 {[%clk 0:00:25]}  Bf3 {[%clk 0:02:23]} 28. Ne3 {[%clk 0:00:22]}  Rd7 {[%clk 0:02:24]} 29. Nc4 {[%clk 0:00:21]}  Bd5 {[%clk 0:02:23]} 30. Ne5 {[%clk 0:00:20]}  Rc7+ {[%clk 0:02:23]} 31. Kb2 {[%clk 0:00:21]}  f6 {[%clk 0:02:24]} 32. Nd3 {[%clk 0:00:19]}  b6 {[%clk 0:02:24]} 33. a3 {[%clk 0:00:17]}  Be4 {[%clk 0:02:23]} 34. Re3 {[%clk 0:00:15]}  Kd7 {[%clk 0:02:22]} 35. Kb3 {[%clk 0:00:14]}  Kd6 {[%clk 0:02:22]} 36. Nf2 {[%clk 0:00:15]}  Kd5 {[%clk 0:02:22]} 37. Re1 {[%clk 0:00:15]}  Kd4 {[%clk 0:02:21]} 38. Re2 {[%clk 0:00:09]}  Rc3+ {[%clk 0:02:19]} 39. Ka4 {[%clk 0:00:09]}  Kc4 {[%clk 0:02:09]} 40. Ra2 {[%clk 0:00:01]}  Bc6+ {[%clk 0:02:08]} 41. b5 {[%clk 0:00:02]}  Bxb5# {[%clk 0:02:08]} 0-1

[Event "December 19 Early 2023"]
[Site "https://www.chess.com"]
[Date "2023.12.19"]
[Round "1"]
[White "Vachier-Lagrave, Maxime"]
[Black "Martinez Reyes, Pedro Ramon"]
[Result "1-0"]
[Board "3"]
[TimeControl "180+1"]
[WhiteFideId "623539"]
[BlackFideId "3901807"]
[WhiteElo "2748"]
[BlackElo "2327"]
[WhiteTeam "FRA"]
[BlackTeam "VEN"]
[WhiteClock "0:02:04"]
[BlackClock "0:01:09"]

1. e4 {[%clk 0:03:00]}  e6 {[%clk 0:03:00]} 2. d4 {[%clk 0:02:59]}  d5 {[%clk 0:03:00]} 3. Bd3 {[%clk 0:02:59]}  dxe4 {[%clk 0:02:59]} 4. Bxe4 {[%clk 0:03:00]}  Nf6 {[%clk 0:03:00]} 5. Bf3 {[%clk 0:03:01]}  Nbd7 {[%clk 0:03:00]} 6. Nc3 {[%clk 0:02:56]}  Bd6 {[%clk 0:02:58]} 7. g4 {[%clk 0:02:51]}  e5 {[%clk 0:02:53]} 8. g5 {[%clk 0:02:51]}  exd4 {[%clk 0:02:51]} 9. Qxd4 {[%clk 0:02:46]}  Qe7+ {[%clk 0:02:50]} 10. Be3 {[%clk 0:02:41]}  Ng8 {[%clk 0:02:02]} 11. Nd5 {[%clk 0:02:37]}  Qe5 {[%clk 0:01:59]} 12. O-O-O {[%clk 0:02:38]}  Ne7 {[%clk 0:01:53]} 13. Qd2 {[%clk 0:02:21]}  Nxd5 {[%clk 0:01:50]} 14. Bxd5 {[%clk 0:02:22]}  O-O {[%clk 0:01:48]} 15. Nf3 {[%clk 0:02:20]}  Qf5 {[%clk 0:01:42]} 16. Qe2 {[%clk 0:02:08]}  Nb6 {[%clk 0:01:35]} 17. Bb3 {[%clk 0:02:08]}  Be6 {[%clk 0:01:30]} 18. Nd4 {[%clk 0:02:05]}  Qh3 {[%clk 0:01:20]} 19. Nxe6 {[%clk 0:02:04]}  fxe6 {[%clk 0:01:09]} 20. Bxb6 {[%clk 0:02:04]} 1-0

[Event "December 19 Early 2023"]
[Site "https://www.chess.com"]
[Date "2023.12.19"]
[Round "1"]
[White "Devaev, Alexander"]
[Black "Nihal Sarin"]
[Result "0-1"]
[Board "4"]
[TimeControl "180+1"]
[WhiteFideId "4169395"]
[BlackFideId "25092340"]
[WhiteElo "2172"]
[BlackElo "2689"]
[WhiteTeam "RUS"]
[BlackTeam "IND"]
[WhiteClock "0:00:00"]
[BlackClock "0:02:23"]

1. d4 {[%clk 0:03:00]}  a6 {[%clk 0:03:00]} 2. Nf3 {[%clk 0:02:58]}  d5 {[%clk 0:03:01]} 3. Bf4 {[%clk 0:02:43]}  Nf6 {[%clk 0:03:01]} 4. e3 {[%clk 0:02:43]}  Bg4 {[%clk 0:03:01]} 5. c4 {[%clk 0:02:43]}  e6 {[%clk 0:03:01]} 6. Nc3 {[%clk 0:02:42]}  Nc6 {[%clk 0:03:02]} 7. cxd5 {[%clk 0:02:42]}  exd5 {[%clk 0:03:02]} 8. Be2 {[%clk 0:02:41]}  Bb4 {[%clk 0:03:03]} 9. Rc1 {[%clk 0:02:40]}  O-O {[%clk 0:03:03]} 10. O-O {[%clk 0:02:40]}  Re8 {[%clk 0:03:04]} 11. h3 {[%clk 0:02:40]}  Bh5 {[%clk 0:03:04]} 12. Ne5 {[%clk 0:02:38]}  Ne7 {[%clk 0:03:04]} 13. Bxh5 {[%clk 0:02:37]}  Nxh5 {[%clk 0:03:01]} 14. Qxh5 {[%clk 0:02:38]}  g6 {[%clk 0:03:02]} 15. Qd1 {[%clk 0:02:37]}  c6 {[%clk 0:03:02]} 16. a3 {[%clk 0:02:22]}  Bd6 {[%clk 0:03:02]} 17. Nd3 {[%clk 0:02:22]}  Nf5 {[%clk 0:03:01]} 18. Bxd6 {[%clk 0:02:21]}  Qxd6 {[%clk 0:03:02]} 19. Nc5 {[%clk 0:02:12]}  Re7 {[%clk 0:03:02]} 20. b4 {[%clk 0:02:09]}  Rae8 {[%clk 0:03:02]} 21. Qd2 {[%clk 0:01:54]}  h5 {[%clk 0:03:02]} 22. Nd3 {[%clk 0:01:51]}  Qf6 {[%clk 0:03:03]} 23. Ne5 {[%clk 0:01:50]}  Nh4 {[%clk 0:03:03]} 24. f4 {[%clk 0:01:48]}  Nf5 {[%clk 0:03:03]} 25. Nd1 {[%clk 0:01:38]}  h4 {[%clk 0:03:03]} 26. Nf2 {[%clk 0:01:37]}  Ng3 {[%clk 0:03:04]} 27. a4 {[%clk 0:01:29]}  Qf5 {[%clk 0:03:02]} 28. Rfe1 {[%clk 0:01:28]}  f6 {[%clk 0:03:01]} 29. Neg4 {[%clk 0:01:27]}  Kg7 {[%clk 0:03:01]} 30. Qc2 {[%clk 0:01:17]}  Qxf4 {[%clk 0:03:00]} 31. Nh1 {[%clk 0:00:50]}  Qg5 {[%clk 0:02:54]} 32. Nxg3 {[%clk 0:00:45]}  hxg3 {[%clk 0:02:55]} 33. Qc3 {[%clk 0:00:33]}  Re4 {[%clk 0:02:54]} 34. Kf1 {[%clk 0:00:13]}  Qh5 {[%clk 0:02:31]} 35. Qd2 {[%clk 0:00:07]}  Rh8 {[%clk 0:02:25]} 36. b5 {[%clk 0:00:04]}  axb5 {[%clk 0:02:22]} 37. axb5 {[%clk 0:00:04]}  Rxg4 {[%clk 0:02:22]} 38. hxg4 {[%clk 0:00:00]}  Qxg4 {[%clk 0:02:23]} 0-1

[Event "December 19 Early 2023"]
[Site "https://www.chess.com"]
[Date "2023.12.19"]
[Round "1"]
[White "Durucay, Uygar"]
[Black "Le, Tuan Minh"]
[Result "0-1"]
[Board "6"]
[TimeControl "180+1"]
[WhiteFideId "44591560"]
[BlackFideId "12401153"]
[WhiteElo "1913"]
[BlackElo "2561"]
[WhiteTeam "TUR"]
[BlackTeam "VIE"]
[WhiteClock "0:00:13"]
[BlackClock "0:01:10"]

1. d4 {[%clk 0:03:00]}  d5 {[%clk 0:02:51]} 2. c4 {[%clk 0:03:00]}  c6 {[%clk 0:02:51]} 3. cxd5 {[%clk 0:03:01]}  cxd5 {[%clk 0:02:50]} 4. Bf4 {[%clk 0:03:01]}  Nf6 {[%clk 0:02:41]} 5. e3 {[%clk 0:03:01]}  Nc6 {[%clk 0:02:41]} 6. Nc3 {[%clk 0:03:01]}  a6 {[%clk 0:02:40]} 7. Bd3 {[%clk 0:03:00]}  Bg4 {[%clk 0:02:39]} 8. Nge2 {[%clk 0:02:48]}  e6 {[%clk 0:02:39]} 9. O-O {[%clk 0:02:48]}  Bd6 {[%clk 0:02:39]} 10. Bxd6 {[%clk 0:02:43]}  Qxd6 {[%clk 0:02:40]} 11. a3 {[%clk 0:02:40]}  O-O {[%clk 0:02:40]} 12. Rc1 {[%clk 0:02:37]}  Bh5 {[%clk 0:02:30]} 13. b4 {[%clk 0:02:35]}  Rac8 {[%clk 0:02:16]} 14. Qb3 {[%clk 0:02:31]}  Bg6 {[%clk 0:02:13]} 15. Nf4 {[%clk 0:02:29]}  Nxd4 {[%clk 0:02:11]} 16. Qb2 {[%clk 0:02:14]}  Nc6 {[%clk 0:02:05]} 17. Rfd1 {[%clk 0:02:02]}  Ne5 {[%clk 0:02:05]} 18. Bxg6 {[%clk 0:02:01]}  hxg6 {[%clk 0:02:06]} 19. Na4 {[%clk 0:02:00]}  Ne4 {[%clk 0:02:01]} 20. Nc5 {[%clk 0:01:43]}  Nxc5 {[%clk 0:01:56]} 21. bxc5 {[%clk 0:01:43]}  Qc7 {[%clk 0:01:55]} 22. Rb1 {[%clk 0:01:05]}  Nc4 {[%clk 0:01:55]} 23. Qxb7 {[%clk 0:01:04]}  Qxb7 {[%clk 0:01:55]} 24. Rxb7 {[%clk 0:01:05]}  Rxc5 {[%clk 0:01:56]} 25. Ra7 {[%clk 0:00:54]}  Ra5 {[%clk 0:01:50]} 26. Rb1 {[%clk 0:00:54]}  Rxa3 {[%clk 0:01:49]} 27. h4 {[%clk 0:00:53]}  Ne5 {[%clk 0:01:48]} 28. Rbb7 {[%clk 0:00:52]}  Ra2 {[%clk 0:01:25]} 29. Nxe6 {[%clk 0:00:19]}  Rc8 {[%clk 0:01:24]} 30. Ng5 {[%clk 0:00:13]}  Ng4 {[%clk 0:01:14]} 31. g3 {[%clk 0:00:13]}  Rc1+ {[%clk 0:01:07]} 32. Kg2 {[%clk 0:00:13]}  Rxf2+ {[%clk 0:01:08]} 33. Kh3 {[%clk 0:00:13]}  Rh1+ {[%clk 0:01:09]} 34. Kxg4 {[%clk 0:00:13]}  f5# {[%clk 0:01:10]} 0-1

[Event "December 19 Early 2023"]
[Site "https://www.chess.com"]
[Date "2023.12.19"]
[Round "1"]
[White "Shimanov, Aleksandr"]
[Black "Sharapov, Evgeny"]
[Result "0-1"]
[Board "9"]
[TimeControl "180+1"]
[WhiteFideId "4198603"]
[BlackFideId "14103133"]
[WhiteElo "2611"]
[BlackElo "2358"]
[WhiteTeam "RUS"]
[BlackTeam "UKR"]
[WhiteClock "0:00:00"]
[BlackClock "0:00:31"]

1. b3 {[%clk 0:03:00]}  e5 {[%clk 0:02:59]} 2. Bb2 {[%clk 0:03:00]}  Nc6 {[%clk 0:02:59]} 3. c4 {[%clk 0:02:54]}  Nf6 {[%clk 0:02:58]} 4. Nf3 {[%clk 0:02:54]}  d6 {[%clk 0:02:58]} 5. e3 {[%clk 0:02:53]}  Be7 {[%clk 0:02:56]} 6. d4 {[%clk 0:02:47]}  exd4 {[%clk 0:02:56]} 7. Nxd4 {[%clk 0:02:48]}  Nxd4 {[%clk 0:02:54]} 8. Qxd4 {[%clk 0:02:49]}  O-O {[%clk 0:02:53]} 9. Be2 {[%clk 0:02:49]}  c5 {[%clk 0:02:51]} 10. Qc3 {[%clk 0:02:38]}  d5 {[%clk 0:02:46]} 11. cxd5 {[%clk 0:02:35]}  Qxd5 {[%clk 0:02:45]} 12. Bf3 {[%clk 0:02:32]}  Qg5 {[%clk 0:02:40]} 13. h4 {[%clk 0:02:28]}  Qf5 {[%clk 0:02:38]} 14. Nd2 {[%clk 0:02:26]}  Be6 {[%clk 0:02:32]} 15. g4 {[%clk 0:02:19]}  Qg6 {[%clk 0:02:23]} 16. h5 {[%clk 0:02:00]}  Qg5 {[%clk 0:02:21]} 17. h6 {[%clk 0:01:58]}  Bxg4 {[%clk 0:02:02]} 18. O-O-O {[%clk 0:01:40]}  Bxf3 {[%clk 0:01:54]} 19. Nxf3 {[%clk 0:01:41]}  Qf5 {[%clk 0:01:54]} 20. hxg7 {[%clk 0:01:40]}  Rfd8 {[%clk 0:01:52]} 21. Ne5 {[%clk 0:01:31]}  Ne4 {[%clk 0:01:43]} 22. Qc4 {[%clk 0:01:27]}  b5 {[%clk 0:01:33]} 23. Qxb5 {[%clk 0:01:10]}  Nxf2 {[%clk 0:01:31]} 24. Rxd8+ {[%clk 0:00:46]}  Rxd8 {[%clk 0:01:31]} 25. Nc6 {[%clk 0:00:46]}  Qd7 {[%clk 0:01:15]} 26. Rf1 {[%clk 0:00:39]}  Nd3+ {[%clk 0:01:08]} 27. Qxd3 {[%clk 0:00:34]}  Qxc6 {[%clk 0:01:08]} 28. Qf5 {[%clk 0:00:28]}  Qg6 {[%clk 0:00:56]} 29. Qe5 {[%clk 0:00:27]}  Qd3 {[%clk 0:00:49]} 30. Rh1 {[%clk 0:00:20]}  Bf6 {[%clk 0:00:39]} 31. Qxf6 {[%clk 0:00:14]}  Qxe3+ {[%clk 0:00:39]} 32. Kc2 {[%clk 0:00:00]}  Qe4+ {[%clk 0:00:31]} 0-1

[Event "December 19 Early 2023"]
[Site "https://www.chess.com"]
[Date "2023.12.19"]
[Round "1"]
[White "Horak, Martin"]
[Black "Bluebaum, Matthias"]
[Result "0-1"]
[Board "10"]
[TimeControl "180+1"]
[WhiteFideId "367095"]
[BlackFideId "24651516"]
[WhiteElo "2091"]
[BlackElo "2621"]
[WhiteTeam "CZE"]
[BlackTeam "GER"]
[WhiteClock "0:00:00"]
[BlackClock "0:01:52"]

1. e4 {[%clk 0:03:00]}  e6 {[%clk 0:03:00]} 2. d4 {[%clk 0:03:00]}  d5 {[%clk 0:03:01]} 3. Nc3 {[%clk 0:02:59]}  Nf6 {[%clk 0:03:01]} 4. Bg5 {[%clk 0:02:57]}  dxe4 {[%clk 0:03:02]} 5. Nxe4 {[%clk 0:02:57]}  Be7 {[%clk 0:03:02]} 6. Nxf6+ {[%clk 0:02:54]}  Bxf6 {[%clk 0:03:03]} 7. Bxf6 {[%clk 0:02:55]}  Qxf6 {[%clk 0:03:03]} 8. Nf3 {[%clk 0:02:54]}  O-O {[%clk 0:03:04]} 9. Bd3 {[%clk 0:02:53]}  c5 {[%clk 0:03:04]} 10. O-O {[%clk 0:02:45]}  cxd4 {[%clk 0:03:04]} 11. Nxd4 {[%clk 0:02:45]}  e5 {[%clk 0:03:05]} 12. Nb5 {[%clk 0:02:35]}  Nc6 {[%clk 0:03:05]} 13. Nd6 {[%clk 0:02:28]}  Rd8 {[%clk 0:03:01]} 14. Nxc8 {[%clk 0:02:24]}  Raxc8 {[%clk 0:03:02]} 15. Qe2 {[%clk 0:02:00]}  g6 {[%clk 0:03:01]} 16. c3 {[%clk 0:01:58]}  Kg7 {[%clk 0:03:00]} 17. Bb1 {[%clk 0:01:55]}  Qf4 {[%clk 0:02:55]} 18. Bd3 {[%clk 0:01:41]}  Rd6 {[%clk 0:02:53]} 19. g3 {[%clk 0:01:38]}  Qf6 {[%clk 0:02:50]} 20. Rad1 {[%clk 0:01:37]}  Rcd8 {[%clk 0:02:50]} 21. Be4 {[%clk 0:01:36]}  Qe6 {[%clk 0:02:45]} 22. Bxc6 {[%clk 0:01:28]}  bxc6 {[%clk 0:02:43]} 23. b3 {[%clk 0:01:26]}  e4 {[%clk 0:02:41]} 24. Rfe1 {[%clk 0:01:23]}  f5 {[%clk 0:02:39]} 25. Kg2 {[%clk 0:01:22]}  Qf6 {[%clk 0:02:37]} 26. c4 {[%clk 0:01:16]}  Rd3 {[%clk 0:02:35]} 27. Rxd3 {[%clk 0:01:09]}  Rxd3 {[%clk 0:02:36]} 28. Qc2 {[%clk 0:00:47]}  Qd4 {[%clk 0:02:34]} 29. Re2 {[%clk 0:00:46]}  c5 {[%clk 0:02:34]} 30. Qb2 {[%clk 0:00:42]}  h5 {[%clk 0:02:32]} 31. h4 {[%clk 0:00:41]}  Qxb2 {[%clk 0:02:23]} 32. Rxb2 {[%clk 0:00:40]}  a5 {[%clk 0:02:24]} 33. Kf1 {[%clk 0:00:37]}  Rd1+ {[%clk 0:02:21]} 34. Ke2 {[%clk 0:00:37]}  Ra1 {[%clk 0:02:22]} 35. Rd2 {[%clk 0:00:37]}  Kf6 {[%clk 0:02:22]} 36. Ke3 {[%clk 0:00:36]}  Re1+ {[%clk 0:02:20]} 37. Kf4 {[%clk 0:00:36]}  e3 {[%clk 0:02:13]} 38. Rc2 {[%clk 0:00:21]}  exf2 {[%clk 0:02:08]} 39. Rxf2 {[%clk 0:00:20]}  Rd1 {[%clk 0:02:03]} 40. Re2 {[%clk 0:00:19]}  Rd4+ {[%clk 0:02:03]} 41. Kf3 {[%clk 0:00:19]}  a4 {[%clk 0:02:03]} 42. Re3 {[%clk 0:00:14]}  Rd2 {[%clk 0:02:03]} 43. bxa4 {[%clk 0:00:12]}  Rxa2 {[%clk 0:02:03]} 44. Rc3 {[%clk 0:00:11]}  Rxa4 {[%clk 0:02:04]} 45. Ke3 {[%clk 0:00:11]}  Ke5 {[%clk 0:02:03]} 46. Rc2 {[%clk 0:00:09]}  Ra3+ {[%clk 0:02:03]} 47. Kf2 {[%clk 0:00:10]}  Kd4 {[%clk 0:02:04]} 48. Re2 {[%clk 0:00:09]}  Ra6 {[%clk 0:02:04]} 49. Rc2 {[%clk 0:00:08]}  Kd3 {[%clk 0:02:05]} 50. Rc1 {[%clk 0:00:09]}  Ra3 {[%clk 0:01:55]} 51. Rd1+ {[%clk 0:00:07]}  Kxc4 {[%clk 0:01:54]} 52. Rd6 {[%clk 0:00:08]}  Kb5 {[%clk 0:01:49]} 53. Rxg6 {[%clk 0:00:08]}  c4 {[%clk 0:01:49]} 54. Rg5 {[%clk 0:00:08]}  c3 {[%clk 0:01:50]} 55. Rxf5+ {[%clk 0:00:08]}  Kb4 {[%clk 0:01:50]} 56. Rf4+ {[%clk 0:00:08]}  Kb3 {[%clk 0:01:50]} 57. Rf8 {[%clk 0:00:06]}  c2 {[%clk 0:01:50]} 58. Rc8 {[%clk 0:00:05]}  Kb2 {[%clk 0:01:51]} 59. g4 {[%clk 0:00:00]}  hxg4 {[%clk 0:01:52]} 0-1

[Event "December 19 Early 2023"]
[Site "https://www.chess.com"]
[Date "2023.12.19"]
[Round "1"]
[White "Pranav, V"]
[Black "Parfenov, Viktor N."]
[Result "1-0"]
[Board "11"]
[TimeControl "180+1"]
[WhiteFideId "25060783"]
[BlackFideId "4165969"]
[WhiteElo "2562"]
[BlackElo "2093"]
[WhiteTeam "IND"]
[BlackTeam "RUS"]
[WhiteClock "0:01:01"]
[BlackClock "0:00:13"]

1. e4 {[%clk 0:03:00]}  e5 {[%clk 0:02:58]} 2. Nf3 {[%clk 0:02:58]}  Nc6 {[%clk 0:02:58]} 3. Bb5 {[%clk 0:02:59]}  a6 {[%clk 0:02:58]} 4. Ba4 {[%clk 0:02:58]}  Nf6 {[%clk 0:02:58]} 5. O-O {[%clk 0:02:59]}  Bc5 {[%clk 0:02:55]} 6. c3 {[%clk 0:02:58]}  O-O {[%clk 0:02:55]} 7. d4 {[%clk 0:02:58]}  Ba7 {[%clk 0:02:54]} 8. Re1 {[%clk 0:02:58]}  d6 {[%clk 0:02:28]} 9. h3 {[%clk 0:02:54]}  h6 {[%clk 0:02:24]} 10. dxe5 {[%clk 0:02:40]}  Nxe5 {[%clk 0:02:22]} 11. Nxe5 {[%clk 0:02:40]}  dxe5 {[%clk 0:02:22]} 12. Qf3 {[%clk 0:02:41]}  Be6 {[%clk 0:02:18]} 13. Nd2 {[%clk 0:02:39]}  Qe7 {[%clk 0:02:16]} 14. Nf1 {[%clk 0:02:38]}  Kh7 {[%clk 0:02:05]} 15. Ng3 {[%clk 0:02:36]}  g6 {[%clk 0:02:06]} 16. Bb3 {[%clk 0:02:35]}  Bxb3 {[%clk 0:02:01]} 17. axb3 {[%clk 0:02:35]}  Kg7 {[%clk 0:01:55]} 18. b4 {[%clk 0:02:29]}  Qe6 {[%clk 0:01:53]} 19. Qe2 {[%clk 0:02:25]}  Rfd8 {[%clk 0:01:51]} 20. Kh2 {[%clk 0:02:23]}  Rd7 {[%clk 0:01:46]} 21. Rf1 {[%clk 0:02:22]}  Re8 {[%clk 0:01:38]} 22. Be3 {[%clk 0:02:18]}  Bxe3 {[%clk 0:01:37]} 23. fxe3 {[%clk 0:02:18]}  Red8 {[%clk 0:01:23]} 24. Rf2 {[%clk 0:02:13]}  Ne8 {[%clk 0:01:02]} 25. Raf1 {[%clk 0:02:12]}  Nd6 {[%clk 0:01:02]} 26. h4 {[%clk 0:01:54]}  h5 {[%clk 0:00:57]} 27. Rf3 {[%clk 0:01:46]}  Qg4 {[%clk 0:00:55]} 28. Qf2 {[%clk 0:01:44]}  Qxh4+ {[%clk 0:00:52]} 29. Kg1 {[%clk 0:01:44]}  Qg4 {[%clk 0:00:52]} 30. Qe2 {[%clk 0:01:21]}  Nxe4 {[%clk 0:00:46]} 31. Nxe4 {[%clk 0:01:21]}  Qxe4 {[%clk 0:00:46]} 32. Qf2 {[%clk 0:01:22]}  f5 {[%clk 0:00:44]} 33. Qg3 {[%clk 0:01:22]}  Kh7 {[%clk 0:00:37]} 34. Qg5 {[%clk 0:01:18]}  Rd2 {[%clk 0:00:34]} 35. Rg3 {[%clk 0:01:08]}  R8d6 {[%clk 0:00:28]} 36. Kh2 {[%clk 0:01:05]}  Re2 {[%clk 0:00:18]} 37. Rff3 {[%clk 0:01:01]}  Rdd2 {[%clk 0:00:13]} 38. Qxg6+ {[%clk 0:01:01]} 1-0

[Event "December 19 Early 2023"]
[Site "https://www.chess.com"]
[Date "2023.12.19"]
[Round "1"]
[White "Kanyamarala, Tarun"]
[Black "Mamedyarov, Shakhriyar"]
[Result "0-1"]
[Board "12"]
[TimeControl "180+1"]
[WhiteFideId "45004714"]
[BlackFideId "13401319"]
[WhiteElo "2318"]
[BlackElo "2716"]
[WhiteTeam "IRL"]
[BlackTeam "AZE"]
[WhiteClock "0:00:01"]
[BlackClock "0:00:19"]

1. d4 {[%clk 0:03:00]}  Nf6 {[%clk 0:02:55]} 2. c4 {[%clk 0:03:00]}  e5 {[%clk 0:02:53]} 3. dxe5 {[%clk 0:02:59]}  Ng4 {[%clk 0:02:53]} 4. e4 {[%clk 0:02:58]}  Nxe5 {[%clk 0:02:53]} 5. f4 {[%clk 0:02:58]}  Nec6 {[%clk 0:02:54]} 6. Nc3 {[%clk 0:02:58]}  Bc5 {[%clk 0:02:53]} 7. Na4 {[%clk 0:02:57]}  Bb4+ {[%clk 0:02:51]} 8. Bd2 {[%clk 0:02:54]}  a5 {[%clk 0:02:51]} 9. Nf3 {[%clk 0:02:50]}  d6 {[%clk 0:02:51]} 10. Bd3 {[%clk 0:02:41]}  Bg4 {[%clk 0:02:44]} 11. O-O {[%clk 0:02:39]}  Nd7 {[%clk 0:02:43]} 12. Be3 {[%clk 0:02:27]}  O-O {[%clk 0:02:31]} 13. Bc2 {[%clk 0:02:11]}  Re8 {[%clk 0:02:23]} 14. h3 {[%clk 0:01:46]}  Bxf3 {[%clk 0:02:14]} 15. Qxf3 {[%clk 0:01:47]}  Nc5 {[%clk 0:01:59]} 16. Rad1 {[%clk 0:01:46]}  Qe7 {[%clk 0:01:11]} 17. Nxc5 {[%clk 0:01:41]}  Bxc5 {[%clk 0:01:12]} 18. Rfe1 {[%clk 0:01:28]}  Nb4 {[%clk 0:00:56]} 19. Bb1 {[%clk 0:01:26]}  Rad8 {[%clk 0:00:56]} 20. a3 {[%clk 0:01:20]}  Na6 {[%clk 0:00:56]} 21. Bc2 {[%clk 0:01:17]}  c6 {[%clk 0:00:54]} 22. Qf2 {[%clk 0:01:04]}  g6 {[%clk 0:00:51]} 23. Kh1 {[%clk 0:01:00]}  Bxe3 {[%clk 0:00:51]} 24. Rxe3 {[%clk 0:00:59]}  Qf6 {[%clk 0:00:49]} 25. Bb1 {[%clk 0:00:45]}  Nc5 {[%clk 0:00:49]} 26. Rde1 {[%clk 0:00:36]}  a4 {[%clk 0:00:46]} 27. Rf3 {[%clk 0:00:30]}  b6 {[%clk 0:00:37]} 28. g4 {[%clk 0:00:15]}  Re7 {[%clk 0:00:34]} 29. g5 {[%clk 0:00:09]}  Qe6 {[%clk 0:00:34]} 30. Qf1 {[%clk 0:00:08]}  Rde8 {[%clk 0:00:32]} 31. e5 {[%clk 0:00:06]}  dxe5 {[%clk 0:00:29]} 32. f5 {[%clk 0:00:06]}  Qd7 {[%clk 0:00:26]} 33. f6 {[%clk 0:00:05]}  Re6 {[%clk 0:00:26]} 34. Qf2 {[%clk 0:00:06]}  e4 {[%clk 0:00:25]} 35. Qh4 {[%clk 0:00:05]}  exf3 {[%clk 0:00:22]} 36. Rf1 {[%clk 0:00:04]}  h5 {[%clk 0:00:20]} 37. gxh6 {[%clk 0:00:03]}  Qd2 {[%clk 0:00:19]} 38. h7+ {[%clk 0:00:03]}  Kh8 {[%clk 0:00:19]} 39. Rxf3 {[%clk 0:00:01]}  Re1+ {[%clk 0:00:19]} 0-1